bitfinex/quotes_BTCUSD_20250127
["timestamp","ask_amount","ask_price","bid_price","bid_amount"]
[1738007012685,0.99531149,99848.0,99847.0,0.314511]
[1738007013970,0.99545299,99848.0,99847.0,0.314511]
[1738007014177,0.99545299,99848.0,99847.0,0.41185829]
[1738007015329,1.32202828,99848.0,99847.0,0.014282]
[1738007015531,1.25468616,99848.0,99847.0,0.014282]
[1738007015732,1.35203345,99848.0,99847.0,0.002]
[1738007016021,0.170234,99844.0,99843.0,0.00013734]
[1738007016426,1.07445299,99848.0,99843.0,0.00013734]
[1738007016654,0.99545299,99848.0,99847.0,0.150229]
[1738007016860,0.99545299,99848.0,99847.0,0.25744614]
[1738007017898,0.99745299,99848.0,99847.0,0.25744614]
[1738007018104,0.99545299,99848.0,99847.0,0.25744614]
[1738007018303,0.99545299,99848.0,99847.0,0.43044614]
[1738007018522,0.99545299,99848.0,99847.0,0.43244614]
[1738007019091,0.99545299,99848.0,99847.0,0.97184614]
[1738007019498,0.0001415,99848.0,99847.0,0.97184614]
[1738007020105,0.0001415,99848.0,99847.0,0.99163386]
[1738007021702,0.0001415,99848.0,99847.0,1.00163386]
[1738007023618,0.0001415,99848.0,99847.0,1.04913386]
[1738007023827,0.0001415,99848.0,99847.0,1.04713386]
[1738007024031,0.0001415,99848.0,99847.0,1.04813386]
[1738007024232,0.0001415,99848.0,99847.0,1.05713386]
[1738007024432,0.0001415,99848.0,99847.0,1.05613386]
[1738007024635,0.0001415,99848.0,99847.0,1.05913386]
[1738007028748,0.0001415,99848.0,99847.0,1.00163386]
[1738007029515,0.0001415,99848.0,99847.0,0.95884614]
[1738007030130,0.0001415,99848.0,99847.0,0.98184614]
[1738007033175,0.0001415,99848.0,99847.0,0.99184614]
[1738007033745,0.0001415,99848.0,99847.0,1.07405614]
[1738007034168,0.0001415,99848.0,99847.0,0.98184614]
[1738007035192,0.0001415,99848.0,99847.0,0.80884614]
[1738007035851,0.0001415,99848.0,99847.0,0.95884614]
[1738007036064,0.0001415,99848.0,99847.0,0.83184614]
[1738007036385,0.0001415,99848.0,99847.0,0.98184614]
[1738007037733,0.0001415,99848.0,99847.0,0.83161714]
[1738007038015,0.1503695,99848.0,99847.0,0.02186985]
[1738007038175,0.1016415,99848.0,99847.0,0.02186985]
[1738007038425,0.2318695,99848.0,99847.0,0.012]
[1738007038722,0.0001415,99848.0,99847.0,0.162229]
[1738007038920,0.0001415,99848.0,99847.0,0.153229]
[1738007039126,0.0001415,99848.0,99847.0,0.41056025]
[1738007039366,0.0001415,99848.0,99847.0,0.26033125]
[1738007039568,0.0001415,99848.0,99847.0,0.16598396]
[1738007039768,0.0001415,99848.0,99847.0,0.156]
[1738007040529,0.0001415,99848.0,99847.0,0.153]
[1738007040724,0.0001415,99848.0,99847.0,0.154]
[1738007041068,0.1503695,99848.0,99847.0,0.154]
[1738007041270,0.1503695,99848.0,99847.0,0.151]
[1738007041676,0.1503695,99848.0,99847.0,0.157]
[1738007041901,0.1703695,99848.0,99847.0,0.006]
[1738007042052,0.0001415,99848.0,99847.0,0.007]
[1738007042461,0.1703695,99848.0,99847.0,0.001]
[1738007042832,0.1703695,99848.0,99847.0,0.004]
[1738007044014,0.1703695,99848.0,99847.0,0.003]
[1738007044226,0.1703695,99848.0,99847.0,0.004]
[1738007045460,0.2983695,99848.0,99847.0,0.004]
[1738007047185,0.39571679,99848.0,99847.0,0.004]
[1738007047990,0.1,99844.0,99843.0,0.00043449]
[1738007048207,1.94419221,99844.0,99843.0,0.00043449]
[1738007048410,1.99098282,99844.0,99843.0,0.00043449]
[1738007050889,1.99198282,99844.0,99843.0,0.00043449]
[1738007051501,2.00504963,99844.0,99843.0,0.00043449]
[1738007051705,1.77763553,99844.0,99843.0,0.00043449]
[1738007051941,1.79763553,99844.0,99843.0,0.00043449]
[1738007052705,1.79663553,99844.0,99843.0,0.00043449]
[1738007052884,1.79363553,99844.0,99843.0,0.00043449]
[1738007053321,1.77463553,99844.0,99843.0,0.00043449]
[1738007053534,1.79463553,99844.0,99843.0,0.00043449]
[1738007054397,1.89298282,99844.0,99843.0,0.00043449]
[1738007059431,1.79563553,99844.0,99843.0,0.00043449]
[1738007062735,1.67023553,99844.0,99843.0,0.00043449]
[1738007063088,1.67037703,99844.0,99843.0,0.00043449]
[1738007064151,1.66837703,99844.0,99843.0,0.00043449]
[1738007067361,1.85347837,99844.0,99843.0,0.00043449]
[1738007067618,1.85547837,99844.0,99843.0,0.00043449]
[1738007067962,1.85447837,99844.0,99843.0,0.00043449]
[1738007068159,1.85347837,99844.0,99843.0,0.00043449]
[1738007068365,1.85647837,99844.0,99843.0,0.00043449]
[1738007070659,1.90487837,99844.0,99843.0,0.00043449]
[1738007072240,1.92519862,99844.0,99843.0,0.00043449]
[1738007072653,1.78753108,99844.0,99843.0,0.00043449]
[1738007073487,1.73913108,99844.0,99843.0,0.00043449]
[1738007073691,1.75913108,99844.0,99843.0,0.00043449]
[1738007073897,1.74113108,99844.0,99843.0,0.00043449]
[1738007074075,1.67337703,99844.0,99843.0,0.00043449]
[1738007074275,1.67929773,99844.0,99843.0,0.00043449]
[1738007074481,1.67629773,99844.0,99843.0,0.00043449]
[1738007074692,1.66837703,99844.0,99843.0,0.00043449]
[1738007074917,1.67137703,99844.0,99843.0,0.00043449]
[1738007075099,1.67037703,99844.0,99843.0,0.00043449]
[1738007075460,1.67137703,99844.0,99843.0,0.00043449]
[1738007076306,1.66937703,99844.0,99843.0,0.00043449]
[1738007076513,1.67037703,99844.0,99843.0,0.00043449]
[1738007076954,1.50014303,99844.0,99843.0,0.00043449]
[1738007077336,1.49914303,99844.0,99843.0,0.01174577]
[1738007077577,1.49914303,99844.0,99843.0,0.00043449]
[1738007077755,1.64937703,99844.0,99843.0,0.00043449]
[1738007078195,1.66837703,99844.0,99843.0,0.00043449]
[1738007078387,0.1703755,99844.0,99843.0,0.00043449]
[1738007078597,0.17138489,99844.0,99843.0,0.00043449]
[1738007078782,0.24728489,99844.0,99843.0,0.00043449]
[1738007078979,0.2462755,99844.0,99843.0,0.00043449]
[1738007080254,0.2472755,99844.0,99843.0,0.00043449]
[1738007080654,0.2462755,99844.0,99843.0,0.00043449]
[1738007080864,0.2482755,99844.0,99843.0,0.00043449]
[1738007081304,0.2472755,99844.0,99843.0,0.00043449]
[1738007081514,0.2492755,99844.0,99843.0,0.00043449]
[1738007082172,0.34662279,99844.0,99843.0,0.00043449]
[1738007084055,0.1733755,99844.0,99843.0,0.00043449]
[1738007085335,0.1713755,99844.0,99843.0,0.00043449]
[1738007085739,0.1733755,99844.0,99843.0,0.00043449]
[1738007086284,0.17338489,99844.0,99843.0,0.00043449]
[1738007086693,0.17438489,99844.0,99843.0,0.00043449]
[1738007087026,0.17338489,99844.0,99843.0,0.00043449]
[1738007087377,0.17238489,99844.0,99843.0,0.00043449]
[1738007087939,0.17138489,99844.0,99843.0,0.00043449]
[1738007088140,0.1733755,99844.0,99843.0,0.00043449]
[1738007089529,0.1723755,99844.0,99843.0,0.00043449]
[1738007090193,0.1703755,99844.0,99843.0,0.00043449]
[1738007091332,0.0001415,99844.0,99843.0,0.15066949]
[1738007091692,0.0001415,99844.0,99843.0,0.16197184]
[1738007096365,0.0001415,99844.0,99843.0,0.43332066]
[1738007096581,0.0001415,99844.0,99843.0,0.43231913]
[1738007097825,0.0001415,99844.0,99843.0,0.43831913]
[1738007098598,0.0001415,99844.0,99843.0,0.44031913]
[1738007101292,1.759e-05,99848.0,99847.0,0.300229]
[1738007101494,1.49801912,99848.0,99847.0,0.39757629]
[1738007101701,1.49801912,99848.0,99847.0,0.41068425]
[1738007101905,1.49801912,99848.0,99847.0,0.43368425]
[1738007102032,0.99532908,99848.0,99847.0,0.43368425]
[1738007102461,0.99532908,99848.0,99847.0,0.43568425]
[1738007103245,0.99532908,99848.0,99847.0,0.44068425]
[1738007103646,1.14553949,99848.0,99847.0,0.02010796]
[1738007103888,1.26288678,99848.0,99847.0,0.02010796]
[1738007104080,1.24193949,99848.0,99847.0,0.007]
[1738007104895,1.24193949,99848.0,99847.0,0.005]
[1738007105111,0.150234,99844.0,99843.0,0.00043449]
[1738007105325,0.17124339,99844.0,99843.0,0.00043449]
[1738007106190,0.170234,99844.0,99843.0,0.00043449]
[1738007106457,0.16622773,99844.0,99843.0,0.00043449]
[1738007106934,0.16723712,99844.0,99843.0,0.00143449]
[1738007107173,0.16723712,99844.0,99843.0,0.00443449]
[1738007108930,0.21543712,99844.0,99843.0,0.00443449]
[1738007109176,0.21442773,99844.0,99843.0,0.00443449]
[1738007109700,0.16622773,99844.0,99843.0,0.00343449]
[1738007109972,0.16822773,99844.0,99843.0,0.00343449]
[1738007110234,0.16822773,99844.0,99843.0,0.00043449]
[1738007110488,0.17122773,99844.0,99843.0,0.00043449]
[1738007110746,0.16822773,99844.0,99843.0,0.00043449]
[1738007110999,0.16822773,99844.0,99843.0,0.00243449]
[1738007111268,0.16923712,99844.0,99843.0,0.00243449]
[1738007111776,0.16622773,99844.0,99843.0,0.00243449]
[1738007112052,0.16822773,99844.0,99843.0,0.00243449]
[1738007112331,0.002,99844.0,99843.0,0.15266949]
[1738007112571,0.152234,99844.0,99843.0,0.00243449]
[1738007112837,0.172234,99844.0,99843.0,0.01560866]
[1738007113116,0.170234,99844.0,99843.0,0.00043449]
[1738007113361,0.25284339,99844.0,99843.0,0.00043449]
[1738007113657,0.251834,99844.0,99843.0,0.00043449]
[1738007114405,0.34918129,99844.0,99843.0,0.00043449]
[1738007114657,0.49152858,99844.0,99843.0,0.00043449]
[1738007116316,0.49352858,99844.0,99843.0,0.00043449]
[1738007116573,0.49652858,99844.0,99843.0,0.00043449]
[1738007117148,0.51615098,99844.0,99843.0,0.00043449]
[1738007118375,0.41880369,99844.0,99843.0,0.00043449]
[1738007118982,0.39880369,99844.0,99843.0,0.00043449]
[1738007119584,0.41880369,99844.0,99843.0,0.00043449]
[1738007119789,0.281834,99844.0,99843.0,0.00043449]
[1738007119994,0.301834,99844.0,99843.0,0.00043449]
[1738007120200,0.278834,99844.0,99843.0,0.00043449]
[1738007120401,0.301834,99844.0,99843.0,0.00043449]
[1738007120619,0.299834,99844.0,99843.0,0.00043449]
[1738007120956,0.2989756,99844.0,99843.0,0.00043449]
[1738007121159,0.3019756,99844.0,99843.0,0.00043449]
[1738007121414,0.2999756,99844.0,99843.0,0.00043449]
[1738007121589,0.39732289,99844.0,99843.0,0.00043449]
[1738007121793,0.39932289,99844.0,99843.0,0.00043449]
[1738007126618,0.39732289,99844.0,99843.0,0.00043449]
[1738007126848,0.39432289,99844.0,99843.0,0.00043449]
[1738007127112,0.39532289,99844.0,99843.0,0.00043449]
[1738007127316,0.54832289,99844.0,99843.0,0.00043449]
[1738007127559,0.64167018,99844.0,99843.0,0.00043449]
[1738007128332,0.64267018,99844.0,99843.0,0.00043449]
[1738007129171,0.64567018,99844.0,99843.0,0.00043449]
[1738007129741,0.74567018,99844.0,99843.0,0.00043449]
[1738007129940,0.74567018,99844.0,99843.0,4.9e-07]
[1738007132475,0.1,99832.0,99829.0,0.0001483]
[1738007132683,0.295755,99830.0,99829.0,0.0001483]
[1738007132877,0.41310229,99830.0,99829.0,0.0001483]
[1738007133080,0.41310229,99830.0,99778.0,0.004014]
[1738007133081,0.02,99795.0,99775.0,0.0481]
[1738007133294,1.76565682,99795.0,99769.0,0.0808]
[1738007134101,1.77562503,99795.0,99769.0,0.0808]
[1738007134339,1.87304157,99795.0,99764.0,0.15]
[1738007134539,1.87304157,99795.0,99794.0,0.00129736]
[1738007134945,1.77569428,99795.0,99794.0,0.00129736]
[1738007135157,1.64837878,99795.0,99794.0,0.00129736]
[1738007135583,1.64837878,99795.0,99794.0,0.00329736]
[1738007136189,1.66837878,99795.0,99794.0,0.00329736]
[1738007136409,1.64837878,99795.0,99794.0,0.00329736]
[1738007137124,1.64837878,99795.0,99794.0,0.00229736]
[1738007137482,1.64837878,99795.0,99794.0,0.00029736]
[1738007138731,1.66837878,99795.0,99794.0,0.00029736]
[1738007138934,1.86307336,99795.0,99794.0,0.00029736]
[1738007139143,1.86407336,99795.0,99794.0,0.00029736]
[1738007140115,1.99107336,99795.0,99794.0,0.00029736]
[1738007140942,1.99007336,99795.0,99794.0,0.00029736]
[1738007141151,2.14007336,99795.0,99794.0,3.6e-07]
[1738007141373,2.14107336,99795.0,99794.0,3.6e-07]
[1738007141580,2.17149276,99795.0,99794.0,3.6e-07]
[1738007141786,2.18149276,99795.0,99794.0,3.6e-07]
[1738007142207,2.20449276,99795.0,99794.0,3.6e-07]
[1738007142410,0.12,99772.0,99747.0,0.0150608]
[1738007142616,1.86569082,99772.0,99747.0,0.0150608]
[1738007143029,1.74834353,99772.0,99747.0,0.0150608]
[1738007143440,1.74834353,99772.0,99749.0,0.150377]
[1738007143649,1.94479082,99772.0,99747.0,0.0150608]
[1738007144083,1.94579082,99772.0,99747.0,0.0150608]
[1738007144296,1.98363055,99772.0,99747.0,0.0150608]
[1738007147124,1.77134353,99772.0,99747.0,0.0150608]
[1738007147356,1.77134353,99772.0,99751.0,0.0806]
[1738007148081,1.77134353,99772.0,99751.0,0.230973]
[1738007148339,1.67134353,99772.0,99755.0,0.24939]
[1738007148587,1.65134353,99772.0,99767.0,0.150349]
[1738007148829,1.65134353,99772.0,99760.0,0.20048]
[1738007148830,1.67134353,99772.0,99760.0,0.20048]
[1738007149035,1.67134353,99772.0,99763.0,0.150356]
[1738007149254,1.67034353,99772.0,99760.0,0.20048]
[1738007149525,1.49800153,99772.0,99771.0,0.23232912]
[1738007149972,1.49800153,99772.0,99771.0,0.2448466]
[1738007150194,1.49800153,99772.0,99771.0,0.2468466]
[1738007150421,1.49800153,99772.0,99771.0,0.2448466]
[1738007150877,1.49800153,99772.0,99771.0,0.2458466]
[1738007151113,1.49800153,99772.0,99771.0,0.0146026]
[1738007151853,1.64834353,99772.0,99771.0,0.00208512]
[1738007152231,1.64834353,99772.0,99771.0,0.00708512]
[1738007152589,1.64834353,99772.0,99771.0,0.00208512]
[1738007152837,1.64834353,99772.0,99771.0,0.00108512]
[1738007153061,1.49800153,99772.0,99771.0,0.15442912]
[1738007153305,1.49800153,99772.0,99771.0,0.15642912]
[1738007153537,1.49800153,99772.0,99771.0,0.16535952]
[1738007153735,1.49800153,99772.0,99771.0,0.16335952]
[1738007153942,1.49800153,99772.0,99771.0,0.16435952]
[1738007154091,1.49800153,99772.0,99771.0,0.41170681]
[1738007154304,1.49800153,99772.0,99771.0,0.41070681]
[1738007154693,1.49800153,99772.0,99771.0,0.41270681]
[1738007155459,1.64834353,99772.0,99771.0,0.16501552]
[1738007155667,1.49800153,99772.0,99771.0,0.15608512]
[1738007155865,1.64834353,99772.0,99771.0,0.15308512]
[1738007156075,1.64834353,99772.0,99771.0,0.15808512]
[1738007156406,1.64834353,99772.0,99771.0,0.15108512]
[1738007156667,1.64834353,99772.0,99771.0,0.15408512]
[1738007156872,1.49800153,99772.0,99771.0,0.15508512]
[1738007157070,1.49800153,99772.0,99771.0,0.30542912]
[1738007157425,1.49800153,99772.0,99771.0,0.16401552]
[1738007158470,1.49800153,99772.0,99771.0,0.31435952]
[1738007158669,1.49800153,99772.0,99771.0,0.41170681]
[1738007160627,1.49800153,99772.0,99771.0,0.48860681]
[1738007161006,1.64834353,99772.0,99771.0,0.16401552]
[1738007161207,1.64834353,99772.0,99771.0,0.15508512]
[1738007161432,1.64834353,99772.0,99771.0,0.00508512]
[1738007161639,1.66834353,99772.0,99771.0,0.00508512]
[1738007162186,1.68858934,99772.0,99771.0,0.00508512]
[1738007162402,1.78593663,99772.0,99771.0,0.00508512]
[1738007162605,1.78593663,99772.0,99771.0,0.00208512]
[1738007162810,1.78593663,99772.0,99771.0,0.00108512]
[1738007163710,1.64834353,99772.0,99771.0,0.00108512]
[1738007163965,1.64934353,99772.0,99771.0,0.00108512]
[1738007164226,1.77034353,99772.0,99771.0,0.00108512]
[1738007164745,1.75034353,99772.0,99771.0,0.00108512]
[1738007164993,1.77034353,99772.0,99771.0,0.00108512]
[1738007165234,1.86769082,99772.0,99771.0,0.00108512]
[1738007165854,1.96503811,99772.0,99771.0,0.00108512]
[1738007166167,2.04813811,99772.0,99771.0,0.00108512]
[1738007166351,2.14813811,99772.0,99771.0,0.00108512]
[1738007166564,2.36551797,99772.0,99771.0,1.2e-07]
[1738007166809,2.36551797,99772.0,99747.0,0.0150608]
[1738007166810,0.12,99748.0,99747.0,0.0150608]
[1738007167011,2.00792682,99748.0,99747.0,0.0150608]
[1738007167636,2.00792682,99748.0,99747.0,0.0097553]
[1738007167845,2.00792682,99748.0,99747.0,3e-07]
[1738007168047,2.00799601,99748.0,99747.0,3e-07]
[1738007168463,0.02,99744.0,99743.0,1.5e-07]
[1738007168663,0.36608797,99744.0,99743.0,1.5e-07]
[1738007168869,0.36507858,99744.0,99743.0,1.5e-07]
[1738007169863,0.36607858,99744.0,99743.0,1.5e-07]
[1738007170064,0.12,99730.0,99729.0,5.1e-07]
[1738007170268,2.13775482,99730.0,99729.0,5.1e-07]
[1738007170477,2.23510211,99730.0,99729.0,5.1e-07]
[1738007170859,2.33510211,99730.0,99729.0,5.1e-07]
[1738007171063,2.33510211,99730.0,99700.0,6.069e-05]
[1738007171064,0.170449,99701.0,99700.0,6.069e-05]
[1738007171268,1.66945992,99701.0,99700.0,6.069e-05]
[1738007171518,1.66845053,99701.0,99700.0,6.069e-05]
[1738007171944,1.64845053,99701.0,99700.0,6.069e-05]
[1738007172212,1.66845053,99701.0,99700.0,6.069e-05]
[1738007172337,1.66845053,99701.0,99700.0,0.00055415]
[1738007172811,1.49800153,99701.0,99700.0,0.00055415]
[1738007173044,1.49800153,99701.0,99700.0,0.15300515]
[1738007173229,1.49800153,99701.0,99700.0,0.16206192]
[1738007173523,1.49800153,99701.0,99700.0,0.47750921]
[1738007173734,0.50369004,99701.0,99700.0,0.55830921]
[1738007173939,0.50369004,99701.0,99700.0,0.55630921]
[1738007173940,0.50269004,99701.0,99700.0,0.55630921]
[1738007174411,0.001,99701.0,99700.0,0.55830921]
[1738007174630,0.50269004,99726.0,99718.0,0.2308]
[1738007174859,0.99531149,99727.0,99726.0,0.323412]
[1738007175070,0.99531149,99727.0,99726.0,0.42075929]
[1738007175284,0.99531149,99727.0,99726.0,0.42977424]
[1738007176700,0.99631149,99727.0,99726.0,0.43477424]
[1738007177556,0.99631149,99727.0,99726.0,0.44504827]
[1738007179508,0.99631149,99727.0,99726.0,0.44518997]
[1738007180354,0.99631149,99727.0,99726.0,0.52598997]
[1738007180761,0.99531149,99727.0,99726.0,0.52298997]
[1738007180982,0.99631149,99727.0,99726.0,0.51371594]
[1738007181385,0.99531149,99727.0,99726.0,0.51071594]
[1738007181586,0.99531149,99727.0,99726.0,0.51271594]
[1738007182023,0.99531149,99727.0,99726.0,0.51071594]
[1738007182217,0.99531149,99727.0,99726.0,0.51471594]
[1738007182426,0.99531149,99727.0,99726.0,0.28391594]
[1738007182626,0.99531149,99727.0,99726.0,0.26991594]
[1738007182908,0.99531149,99727.0,99726.0,0.40691594]
[1738007183180,0.99531149,99727.0,99726.0,0.43391594]
[1738007183383,0.99631149,99727.0,99726.0,0.44291594]
[1738007183531,0.99531149,99727.0,99726.0,0.43391594]
[1738007183968,0.99631149,99727.0,99726.0,0.52511594]
[1738007184167,0.99631149,99727.0,99726.0,0.52111594]
[1738007184644,0.99631149,99727.0,99726.0,0.52511594]
[1738007185074,0.99631149,99727.0,99726.0,0.52111594]
[1738007185281,0.99631149,99727.0,99726.0,0.58111594]
[1738007185493,0.001,99727.0,99726.0,1.12051594]
[1738007185703,0.50269004,99736.0,99735.0,0.150398]
[1738007185907,0.50269004,99736.0,99735.0,0.42174781]
[1738007186115,0.65308704,99736.0,99735.0,0.00898215]
[1738007186338,0.50269004,99736.0,99735.0,0.00898215]
[1738007186541,0.50269004,99736.0,99726.0,0.5445417]
[1738007186747,0.50269004,99736.0,99726.0,0.65088899]
[1738007186955,0.150402,99733.0,99727.0,0.15939186]
[1738007187156,0.50269004,99736.0,99727.0,0.00898286]
[1738007187357,0.50369004,99736.0,99735.0,0.008]
[1738007187582,0.65308704,99736.0,99735.0,0.005]
[1738007187988,0.65308704,99736.0,99735.0,0.00277045]
[1738007188186,0.150398,99735.0,99731.0,0.15]
[1738007188406,0.50269004,99736.0,99732.0,0.01047731]
[1738007188626,0.50269004,99736.0,99732.0,0.16087931]
[1738007188810,0.50269004,99736.0,99732.0,0.01047731]
[1738007189017,0.50369004,99736.0,99732.0,0.01047731]
[1738007189214,0.150401,99733.0,99732.0,0.01047731]
[1738007189548,0.170401,99733.0,99726.0,0.54003516]
[1738007189716,0.170401,99733.0,99732.0,0.01649072]
[1738007190076,0.170401,99733.0,99732.0,0.006]
[1738007190285,0.02,99733.0,99732.0,0.006]
[1738007190495,0.170402,99733.0,99732.0,0.01049072]
[1738007190726,0.021,99733.0,99731.0,0.002]
[1738007190904,0.021,99733.0,99732.0,0.01049072]
[1738007191345,0.171401,99733.0,99728.0,0.150408]
[1738007191549,0.171401,99733.0,99732.0,0.01049072]
[1738007191745,0.021,99733.0,99732.0,0.002]
[1738007191967,0.02129779,99733.0,99732.0,0.002]
[1738007192209,0.00129779,99733.0,99732.0,0.01249072]
[1738007192411,0.02029779,99733.0,99730.0,0.150405]
[1738007192616,0.02129779,99733.0,99732.0,0.16789372]
[1738007192825,0.00129779,99733.0,99732.0,0.40475029]
[1738007193031,0.00129779,99733.0,99732.0,0.41524101]
[1738007194110,0.00129779,99733.0,99732.0,0.43824101]
[1738007194530,0.00129779,99733.0,99732.0,0.52074101]
[1738007194872,0.00129779,99733.0,99732.0,0.51774101]
[1738007195301,0.00029779,99733.0,99732.0,0.52374338]
[1738007195503,0.00029779,99733.0,99732.0,0.53374338]
[1738007195703,0.00129779,99733.0,99732.0,0.53974338]
[1738007195906,0.00129779,99733.0,99732.0,1.06914338]
[1738007196105,0.00029779,99733.0,99732.0,1.06314338]
[1738007196317,0.99660928,99733.0,99732.0,0.99264338]
[1738007196531,0.99660928,99733.0,99732.0,0.98964338]
[1738007196732,0.99660928,99733.0,99732.0,0.42724338]
[1738007196933,0.99660928,99733.0,99732.0,0.43224338]
[1738007197186,0.99560928,99733.0,99732.0,0.44624338]
[1738007197388,0.99560928,99733.0,99732.0,0.44124338]
[1738007197587,0.99560928,99733.0,99732.0,0.44324338]
[1738007197831,0.99560928,99733.0,99732.0,0.17249309]
[1738007198029,1.14601028,99733.0,99732.0,0.01249072]
[1738007198259,0.99560928,99733.0,99728.0,0.150408]
[1738007198473,0.99560928,99733.0,99732.0,0.002]
[1738007198681,1.14601028,99733.0,99732.0,0.002]
[1738007198885,1.14701028,99733.0,99732.0,0.009]
[1738007199091,1.14601028,99733.0,99732.0,0.002]
[1738007199490,1.14701028,99733.0,99732.0,0.002]
[1738007199693,1.14601028,99733.0,99732.0,0.002]
[1738007199929,0.220537,99732.0,99726.0,0.00063516]
[1738007200133,0.02,99730.0,99726.0,0.00063516]
[1738007200343,0.15041,99727.0,99726.0,0.00063516]
[1738007200472,0.15041,99728.0,99726.0,0.00063516]
[1738007200864,0.02,99730.0,99726.0,0.00063516]
[1738007201262,0.170406,99730.0,99726.0,0.00063516]
[1738007201461,0.17017373,99730.0,99726.0,0.00063516]
[1738007202118,0.17017373,99730.0,99726.0,0.00263516]
[1738007202373,0.17017373,99730.0,99726.0,0.00063516]
[1738007202576,0.15041,99727.0,99726.0,0.00363516]
[1738007202861,0.17017773,99727.0,99726.0,0.00363516]
[1738007203276,0.17118712,99727.0,99726.0,0.00363516]
[1738007203484,0.34513441,99727.0,99726.0,0.00063516]
[1738007203701,0.4515622,99727.0,99726.0,0.00063516]
[1738007203925,0.35421491,99727.0,99726.0,0.00163516]
[1738007204351,0.35421491,99727.0,99726.0,0.00063516]
[1738007204557,0.35521491,99727.0,99726.0,0.00063516]
[1738007204991,0.35521491,99727.0,99726.0,0.00263516]
[1738007205202,0.37573608,99727.0,99726.0,0.00063516]
[1738007205594,0.35596835,99727.0,99726.0,0.00063516]
[1738007205731,0.37573608,99727.0,99726.0,0.00063516]
[1738007205948,0.37773608,99727.0,99726.0,0.00063516]
[1738007206180,0.37873608,99727.0,99726.0,0.00063516]
[1738007210327,0.47608337,99727.0,99726.0,0.00063516]
[1738007211550,0.68538337,99727.0,99726.0,1.6e-07]
[1738007211757,0.71580277,99727.0,99726.0,1.6e-07]
[1738007211908,0.39851273,99704.0,99700.0,6.069e-05]
[1738007212150,0.99855006,99704.0,99700.0,6.069e-05]
[1738007212321,1.99386155,99704.0,99700.0,6.069e-05]
[1738007213179,2.09320884,99704.0,99700.0,6.069e-05]
[1738007213404,1.99586155,99704.0,99700.0,6.069e-05]
[1738007213605,1.97509382,99704.0,99700.0,6.069e-05]
[1738007213859,1.97609382,99704.0,99700.0,6.069e-05]
[1738007214052,1.74921426,99704.0,99700.0,6.069e-05]
[1738007216430,1.67021426,99704.0,99700.0,6.069e-05]
[1738007216811,1.65044653,99704.0,99700.0,6.069e-05]
[1738007217234,1.67021426,99704.0,99700.0,6.069e-05]
[1738007217798,1.66921426,99704.0,99700.0,6.069e-05]
[1738007218014,1.65044653,99704.0,99700.0,6.069e-05]
[1738007218367,1.66821426,99704.0,99700.0,6.069e-05]
[1738007218774,1.66921426,99704.0,99703.0,0.0011418]
[1738007218975,1.64944653,99704.0,99703.0,0.0011418]
[1738007219100,1.66821426,99704.0,99703.0,0.0011418]
[1738007221239,1.66821426,99704.0,99700.0,6.069e-05]
[1738007221240,0.17021673,99701.0,99700.0,4.9e-07]
[1738007221415,0.26857341,99701.0,99700.0,4.9e-07]
[1738007221632,0.26756402,99701.0,99700.0,4.9e-07]
[1738007222459,0.26956402,99701.0,99700.0,4.9e-07]
[1738007222687,0.26856402,99701.0,99700.0,4.9e-07]
[1738007222839,0.36591131,99701.0,99700.0,4.9e-07]
[1738007223181,0.36691131,99701.0,99700.0,4.9e-07]
[1738007223384,0.36791131,99701.0,99700.0,4.9e-07]
[1738007224141,0.36791131,99701.0,99700.0,3.4e-07]
[1738007224696,0.36491131,99701.0,99700.0,3.4e-07]
[1738007225019,0.44981131,99701.0,99700.0,3.4e-07]
[1738007225778,0.46944445,99701.0,99700.0,3.4e-07]
[1738007226625,0.72944445,99701.0,99700.0,3.4e-07]
[1738007226831,0.84172913,99701.0,99700.0,3.4e-07]
[1738007227300,0.86172913,99701.0,99700.0,3.4e-07]
[1738007227496,0.86172913,99701.0,99700.0,1.4e-07]
[1738007227707,0.86072913,99701.0,99700.0,1.4e-07]
[1738007228119,0.85972913,99701.0,99700.0,1.4e-07]
[1738007228323,0.86172913,99701.0,99700.0,1.4e-07]
[1738007228776,0.82506385,99701.0,99700.0,1.4e-07]
[1738007229534,0.37026073,99672.0,99671.0,0.0001417]
[1738007229744,2.08805684,99672.0,99671.0,0.0001417]
[1738007230915,2.08854994,99672.0,99671.0,0.0001417]
[1738007231392,2.08954994,99672.0,99671.0,0.0001417]
[1738007233417,2.09965018,99672.0,99671.0,0.0001417]
[1738007234257,0.32026273,99671.0,99670.0,7e-07]
[1738007234466,0.71644199,99671.0,99670.0,7e-07]
[1738007235360,0.71744199,99671.0,99670.0,7e-07]
[1738007235920,0.27029673,99648.0,99626.0,0.0001418]
[1738007236145,1.91124555,99648.0,99626.0,0.0001418]
[1738007238102,1.91224555,99648.0,99626.0,0.0001418]
[1738007238247,2.00959284,99648.0,99626.0,0.0001418]
[1738007238659,2.01985527,99648.0,99626.0,0.0001418]
[1738007238878,2.09625527,99648.0,99647.0,5e-07]
[1738007239090,2.35625527,99648.0,99647.0,5e-07]
[1738007239317,2.40667467,99648.0,99647.0,5e-07]
[1738007239524,2.44333995,99648.0,99647.0,5e-07]
[1738007239721,2.46633995,99648.0,99647.0,5e-07]
[1738007239942,2.48678163,99648.0,99647.0,5e-07]
[1738007240147,2.45011635,99648.0,99647.0,5e-07]
[1738007240346,2.41869695,99648.0,99647.0,5e-07]
[1738007240738,2.41969695,99648.0,99647.0,5e-07]
[1738007241178,2.41869695,99648.0,99647.0,5e-07]
[1738007241583,2.39669695,99648.0,99647.0,5e-07]
[1738007241792,0.17032873,99627.0,99626.0,0.0001418]
[1738007241958,1.76567755,99627.0,99626.0,0.0001418]
[1738007242386,1.64856253,99627.0,99626.0,0.0001418]
[1738007242608,1.66833026,99627.0,99626.0,0.0001418]
[1738007243020,1.66882306,99627.0,99626.0,0.0001418]
[1738007247017,1.49849433,99627.0,99626.0,0.0803418]
[1738007247222,1.49849433,99627.0,99626.0,0.2309048]
[1738007247624,1.49849433,99627.0,99626.0,0.08966526]
[1738007248009,1.49849433,99627.0,99626.0,0.24022826]
[1738007248624,1.49849433,99627.0,99626.0,0.39022826]
[1738007248822,1.49849433,99627.0,99626.0,0.48757555]
[1738007249126,1.49849433,99627.0,99626.0,0.51257555]
[1738007251242,1.49949433,99627.0,99626.0,0.51857555]
[1738007251685,0.0014928,99627.0,99626.0,0.51857555]
[1738007252060,0.00029779,99671.0,99648.0,0.00023227]
[1738007252247,0.00029779,99671.0,99670.0,0.300496]
[1738007252454,0.00029779,99671.0,99670.0,0.39784329]
[1738007252872,0.00029779,99671.0,99670.0,0.40710246]
[1738007253286,0.00029779,99671.0,99670.0,0.43010246]
[1738007253742,0.00029779,99671.0,99670.0,0.43025088]
[1738007254553,0.00029779,99671.0,99670.0,0.44057162]
[1738007254755,0.00029779,99671.0,99670.0,0.49167162]
[1738007254969,0.00029779,99671.0,99670.0,0.49172308]
[1738007255584,0.00029779,99671.0,99670.0,0.49772308]